bitfinex/quotes_BTCUSD_20220226
["timestamp","ask_amount","ask_price","bid_price","bid_amount"]
[1645836615703,0.0140353,39859.0,39849.0,0.00183223]
[1645836615904,0.0140353,39859.0,39856.0,0.09548897]
[1645836616113,0.0090353,39859.0,39856.0,0.09548897]
[1645836616304,0.0090353,39859.0,39852.0,0.09548897]
[1645836616505,0.0090353,39859.0,39849.0,0.00183223]
[1645836617506,0.3090353,39859.0,39849.0,0.00183223]
[1645836617706,0.00953,39858.0,39849.0,0.00183223]
[1645836618305,0.18847922,39852.0,39849.0,0.00183223]
[1645836618504,0.18847922,39852.0,39838.0,0.35]
[1645836618505,0.00071225,39848.0,39845.0,0.00045888]
[1645836619254,0.00071225,39848.0,39842.0,0.00183223]
[1645836619452,0.00071225,39848.0,39845.0,0.00043082]
[1645836620455,0.00071225,39848.0,39842.0,0.30183223]
[1645836620654,0.06265651,39856.0,39845.0,0.00043082]
[1645836620954,0.11265651,39856.0,39845.0,0.30043082]
[1645836621153,0.20993894,39853.0,39845.0,0.30043082]
[1645836621754,0.11265651,39856.0,39845.0,0.3]
[1645836621954,0.06265651,39856.0,39845.0,0.30043083]
[1645836622603,0.072313,39858.0,39845.0,0.30043083]
[1645836622604,0.00953,39858.0,39845.0,0.30043083]
[1645836622801,0.00953,39858.0,39854.0,0.09548897]
[1645836623000,0.00953,39858.0,39845.0,0.05043083]
[1645836623001,0.00953,39858.0,39855.0,0.3]
[1645836623199,0.00953,39858.0,39853.0,0.3]
[1645836623399,0.00953,39858.0,39851.0,0.3]
[1645836624003,0.00953,39858.0,39850.0,0.09548897]
[1645836624601,0.0085653,39859.0,39851.0,0.00183223]
[1645836625404,0.16998876,39854.0,39851.0,0.00183223]
[1645836626002,0.062784,39858.0,39851.0,0.00183223]
[1645836627054,0.18653036,39854.0,39851.0,0.00183223]
[1645836627454,0.0085653,39859.0,39851.0,0.00183223]
[1645836627654,0.26625661,39860.0,39851.0,0.00183223]
[1645836627854,0.26625661,39860.0,39849.0,0.3]
[1645836628058,0.26625661,39860.0,39852.0,0.00021197]
[1645836628256,0.0017653,39860.0,39852.0,0.00021197]
[1645836628554,0.19011949,39856.0,39852.0,0.25021197]
[1645836629260,0.00205455,39860.0,39853.0,0.3]
[1645836630204,0.21652442,39858.0,39853.0,0.3]
[1645836630603,0.21652442,39858.0,39852.0,0.25021197]
[1645836631002,0.21652442,39858.0,39853.0,0.30183223]
[1645836631204,0.26634354,39860.0,39853.0,0.30183223]
[1645836631405,0.0017653,39860.0,39853.0,0.30183223]
[1645836631603,0.25974587,39861.0,39853.0,0.00183223]
[1645836631805,0.25974587,39861.0,39853.0,0.30183223]
[1645836632003,0.0054,39862.0,39853.0,0.30183223]
[1645836633003,0.0054,39862.0,39854.0,0.0002118]
[1645836633205,0.0054,39862.0,39859.0,0.09548897]
[1645836633409,0.0054,39862.0,39861.0,0.09548897]
[1645836633661,0.37172279,39868.0,39861.0,0.09548897]
[1645836633662,0.001,39868.0,39862.0,0.85]
[1645836633861,0.001,39871.0,39867.0,0.29548897]
[1645836634058,0.001,39871.0,39866.0,0.02551]
[1645836634059,0.00034707,39871.0,39870.0,0.47099897]
[1645836634260,0.00034707,39871.0,39870.0,0.82088397]
[1645836634659,0.00034707,39871.0,39870.0,0.09548897]
[1645836634960,0.0011,39874.0,39870.0,0.47088397]
[1645836635159,0.00028856,39872.0,39868.0,0.09548897]
[1645836635359,0.00028856,39872.0,39869.0,0.375395]
[1645836635559,0.00028856,39872.0,39866.0,0.09548897]
[1645836635759,0.00028856,39872.0,39864.0,0.3]
[1645836636260,0.31886239,39874.0,39864.0,0.05]
[1645836636261,0.31776239,39873.0,39864.0,0.05]
[1645836636460,0.00028856,39870.0,39864.0,0.09548897]
[1645836636859,0.00028856,39870.0,39865.0,0.3]
[1645836637062,0.00028856,39870.0,39866.0,0.09548897]
[1645836637260,0.0011,39874.0,39867.0,0.3]
[1645836637706,0.00028856,39869.0,39866.0,0.15]
[1645836637909,0.00028856,39869.0,39860.0,0.00183223]
[1645836637910,0.00028856,39869.0,39868.0,0.09548897]
[1645836638107,0.00028856,39869.0,39868.0,0.39548897]
[1645836638308,0.29530502,39878.0,39869.0,1.225395]
[1645836638507,0.0022,39887.0,39870.0,0.3]
[1645836638508,0.42588319,39887.0,39870.0,0.3]
[1645836638706,0.0011,39883.0,39870.0,0.3]
[1645836638907,0.00115407,39876.0,39870.0,0.3]
[1645836639308,0.00115407,39876.0,39872.0,0.15]
[1645836639510,0.00115407,39876.0,39873.0,0.3]
[1645836639709,0.21994846,39879.0,39871.0,0.3]
[1645836639909,0.21994846,39879.0,39871.0,0.00035893]
[1645836640309,0.21994846,39879.0,39872.0,0.00183223]
[1645836640911,0.21994846,39879.0,39872.0,0.00119984]
[1645836641564,0.18825591,39873.0,39872.0,0.00119984]
[1645836641759,0.37404135,39879.0,39872.0,0.00066187]
[1645836641958,0.00331856,39879.0,39872.0,0.00066187]
[1645836642361,0.00028495,39877.0,39872.0,0.00066187]
[1645836642760,0.23036187,39874.0,39872.0,0.00066187]
[1645836642959,0.00028495,39877.0,39872.0,0.00066187]
[1645836643360,0.00331856,39879.0,39872.0,0.00066187]
[1645836643862,0.70080351,39881.0,39861.0,0.2308]
[1645836644060,0.70080351,39881.0,39867.0,0.09548897]
[1645836644061,0.20928927,39876.0,39867.0,0.09548897]
[1645836644910,0.3715263,39881.0,39871.0,0.09548897]
[1645836645103,0.00080351,39881.0,39871.0,0.09548897]
[1645836645505,0.37072279,39880.0,39868.0,0.09548897]
[1645836645704,0.00080351,39881.0,39868.0,0.09548897]
[1645836645705,0.3715263,39881.0,39868.0,0.09548897]
[1645836646006,0.00080351,39881.0,39868.0,0.09548897]
[1645836646405,0.31749171,39880.0,39865.0,0.15]
[1645836646604,0.31749171,39880.0,39866.0,0.05]
[1645836646804,0.31749171,39880.0,39869.0,0.09548897]
[1645836647006,0.23643523,39877.0,39869.0,0.09548897]
[1645836647205,0.23643523,39877.0,39866.0,0.05]
[1645836647408,0.00028538,39876.0,39869.0,0.00045888]
[1645836647605,0.23172061,39877.0,39869.0,0.00045888]
[1645836648006,0.23172061,39877.0,39869.0,0.00065453]
[1645836648206,0.23172061,39877.0,39869.0,0.00019565]
[1645836648755,0.23172061,39877.0,39870.0,0.09548897]
[1645836648955,0.23172061,39877.0,39869.0,0.00019565]
[1645836651363,0.61749171,39876.0,39869.0,0.00019565]
[1645836651559,0.31749171,39875.0,39869.0,0.00019565]
[1645836651760,0.31749171,39875.0,39869.0,0.00013039]
[1645836651761,0.8371261,39874.0,39869.0,0.00013039]
[1645836651963,1.6529261,39874.0,39869.0,0.00013039]
[1645836652163,0.31749171,39870.0,39869.0,3.9e-07]
[1645836652409,1.47872279,39870.0,39845.0,0.09548897]
[1645836652608,0.31759745,39866.0,39845.0,0.09548897]
[1645836652806,0.52942492,39865.0,39845.0,0.09548897]
[1645836653005,0.57942492,39865.0,39845.0,0.09548897]
[1645836653205,0.23520923,39855.0,39845.0,0.09548897]
[1645836653407,0.22155506,39854.0,39845.0,0.09548897]
[1645836653805,0.23520923,39855.0,39845.0,0.09548897]
[1645836654404,0.23116631,39861.0,39845.0,0.09548897]
[1645836654405,0.23482702,39849.0,39845.0,0.09548897]
[1645836654606,0.3,39860.0,39843.0,0.01003]
[1645836654607,0.19115703,39855.0,39849.0,0.33132879]
[1645836655007,0.24115703,39855.0,39849.0,0.33132879]
[1645836655210,0.05,39854.0,39849.0,0.33132879]
[1645836655611,0.17678288,39853.0,39849.0,0.33132879]
[1645836655807,0.27678288,39853.0,39849.0,0.33132879]
[1645836656449,0.31898288,39853.0,39849.0,0.33132879]
[1645836656650,0.85,39852.0,39837.0,0.09548897]
[1645836656853,0.85,39852.0,39831.0,0.01003]
[1645836656854,0.7658,39850.0,39831.0,0.01003]
[1645836657153,0.7658,39850.0,39825.0,0.01003]
[1645836657154,0.20583621,39834.0,39825.0,0.01003]
[1645836657353,0.20583621,39834.0,39823.0,0.09548897]
[1645836657552,0.22562396,39841.0,39824.0,0.09548897]
[1645836657756,0.32562396,39841.0,39822.0,0.2321]
[1645836657951,0.062814,39839.0,39822.0,0.2321]
[1645836658151,0.062814,39839.0,39824.0,0.09548897]
[1645836658351,0.062814,39839.0,39822.0,0.3821]
[1645836658551,0.23281165,39838.0,39824.0,0.09548897]
[1645836658952,0.23281165,39838.0,39823.0,0.01004]
[1645836658953,0.0422,39837.0,39823.0,0.01004]
[1645836659898,0.0422,39837.0,39823.0,0.31004]
[1645836660104,0.0422,39837.0,39830.0,0.0999]
[1645836660305,0.85,39836.0,39823.0,0.01004]
[1645836660505,0.85,39836.0,39810.0,0.5384]
[1645836660506,0.062829,39832.0,39810.0,0.5384]
[1645836660710,0.06283,39830.0,39810.0,0.63388897]
[1645836661004,0.0922,39829.0,39811.0,0.31]
[1645836661202,0.57802179,39829.0,39811.0,0.31]
[1645836661402,0.1827182,39819.0,39811.0,0.31]
[1645836661601,2.42020417,39812.0,39811.0,0.31]
[1645836661803,2.42020417,39812.0,39811.0,0.01]
[1645836662805,2.42020417,39812.0,39811.0,0.31]
[1645836663003,0.0422,39823.0,39810.0,0.00045955]
[1645836663203,0.0922,39823.0,39810.0,0.00045955]
[1645836663659,0.0422,39823.0,39810.0,0.00045955]
[1645836663955,0.20333145,39816.0,39809.0,0.3]
[1645836664158,0.25333145,39816.0,39815.0,0.0004595]
[1645836665057,0.25333145,39816.0,39804.0,0.09548897]
[1645836665258,0.21617459,39809.0,39803.0,0.09548897]
[1645836665460,0.05,39816.0,39803.0,0.0973275]
[1645836665758,0.112846,39818.0,39803.0,0.0973275]
[1645836666157,0.175696,39818.0,39803.0,0.0973275]
[1645836666355,0.175696,39818.0,39803.0,0.09548897]
[1645836666557,0.175696,39818.0,39795.0,2.04871013]
[1645836666558,0.35,39818.0,39795.0,2.04871013]
[1645836666756,0.05,39818.0,39806.0,0.09548897]
[1645836667257,0.105039,39823.0,39799.0,0.15]
[1645836667541,0.22384748,39818.0,39805.0,0.09548897]
[1645836667745,0.105039,39823.0,39805.0,0.15]
[1645836667944,0.0422,39823.0,39814.0,0.09548897]
[1645836668145,0.0422,39823.0,39812.0,0.17551]
[1645836668341,0.0422,39823.0,39816.0,0.09548897]
[1645836669544,0.2491,39836.0,39823.0,0.15]
[1645836669744,0.2491,39836.0,39822.0,0.2]
[1645836669745,0.5956,39841.0,39824.0,0.3]
[1645836669947,0.7716,39846.0,39824.0,0.3]
[1645836669948,0.7716,39846.0,39829.0,0.09548897]
[1645836670146,1.20728268,39847.0,39828.0,0.00045907]
[1645836670344,0.23585372,39829.0,39828.0,0.00045907]
[1645836671157,0.23585372,39829.0,39819.0,0.3]
[1645836671357,0.23585372,39829.0,39827.0,0.00045908]
[1645836672354,0.23585372,39829.0,39821.0,0.3]
[1645836672553,0.23585372,39829.0,39826.0,0.00045908]
[1645836673553,0.23585372,39829.0,39818.0,0.3]
[1645836673753,0.23585372,39829.0,39826.0,8.502e-05]
[1645836674754,0.23585372,39829.0,39821.0,0.3]
[1645836674999,0.23585372,39829.0,39816.0,0.09548897]
[1645836675199,0.23585372,39829.0,39817.0,0.31004]
[1645836676003,0.18466833,39822.0,39817.0,0.31004]
[1645836676202,0.18466833,39822.0,39817.0,0.3]
[1645836677904,0.188479,39834.0,39819.0,0.09548897]
[1645836678105,0.238479,39834.0,39820.0,0.3]
[1645836678305,0.05,39834.0,39822.0,0.09548897]
[1645836678508,0.03722503,39837.0,39824.0,0.0004591]
[1645836678509,0.08722503,39837.0,39824.0,0.0004591]
[1645836678765,0.16834632,39833.0,39824.0,0.09594807]
[1645836678961,0.16834632,39833.0,39825.0,0.3]
[1645836679365,0.03722503,39837.0,39826.0,0.09548897]
[1645836679568,0.43757087,39843.0,39831.0,0.15]
[1645836679765,1.18835437,39849.0,39834.0,0.09548897]
[1645836679963,0.00115117,39847.0,39834.0,0.09548897]
[1645836680364,0.00115117,39847.0,39835.0,0.09548897]
[1645836680562,0.00115117,39847.0,39832.0,0.19127174]
[1645836680764,0.21058058,39851.0,39830.0,0.01003]
[1645836680965,0.00115145,39849.0,39839.0,0.09548897]
[1645836681765,0.23891696,39845.0,39839.0,0.09548897]
[1645836682821,0.23891696,39845.0,39836.0,0.15]
[1645836683018,0.23891696,39845.0,39839.0,0.09548897]
[1645836683417,0.00225145,39850.0,39839.0,0.08923997]
[1645836683619,0.00225145,39850.0,39845.0,0.08923997]
[1645836683826,0.00225145,39850.0,39839.0,0.02551]
[1645836683827,0.00225145,39850.0,39848.0,0.08923997]
[1645836684018,0.00225145,39850.0,39849.0,0.3]
[1645836684418,0.0011,39850.0,39849.0,0.3]
[1645836684617,0.21791334,39854.0,39850.0,0.00184938]
[1645836685318,0.0033,39854.0,39850.0,0.00184938]
[1645836685919,0.43614113,39857.0,39851.0,0.85]
[1645836686160,0.00115145,39860.0,39850.0,0.00184938]
[1645836686161,0.00115145,39860.0,39857.0,0.35]
[1645836686462,0.00115145,39860.0,39858.0,0.38923997]
[1645836686856,0.2278752,39863.0,39858.0,0.76463497]
[1645836687056,0.2278752,39863.0,39858.0,0.08923997]
[1645836687257,0.2278752,39863.0,39854.0,0.09926997]
[1645836687457,0.2278752,39863.0,39852.0,0.01003]
[1645836687659,0.43742842,39861.0,39850.0,0.00184938]
[1645836688156,0.2278752,39863.0,39850.0,0.00184938]
[1645836688157,0.43742842,39858.0,39850.0,0.00184938]
[1645836688457,0.19901133,39855.0,39850.0,0.00184938]
[1645836688856,0.19901133,39855.0,39850.0,0.09108935]
[1645836689059,0.19901133,39855.0,39850.0,0.00184938]
[1645836690009,0.24901133,39855.0,39850.0,0.00184938]
[1645836690210,0.68624184,39855.0,39850.0,0.00184938]
[1645836690608,0.00565983,39854.0,39850.0,0.00184938]
[1645836691014,0.44289034,39854.0,39850.0,0.00184938]
[1645836691210,0.49289034,39854.0,39850.0,0.00184938]
[1645836691615,0.05565983,39854.0,39850.0,0.00184938]
[1645836691810,0.00565983,39854.0,39850.0,0.00184938]
[1645836692213,0.00565983,39854.0,39838.0,0.0004596]
[1645836692214,0.85,39852.0,39838.0,0.0004596]
[1645836692415,0.062797,39849.0,39838.0,0.0004596]
[1645836692614,0.43723051,39851.0,39838.0,0.0004596]
[1645836692813,0.0463,39850.0,39834.0,0.09926997]
[1645836693015,0.0463,39850.0,39838.0,0.00045958]
[1645836693213,0.19728015,39840.0,39838.0,0.00045958]
[1645836693513,0.47587193,39850.0,39838.0,0.00045958]
[1645836693514,0.0463,39845.0,39838.0,0.00045958]
[1645836693771,0.0463,39844.0,39838.0,0.00045958]
[1645836693970,0.0463,39843.0,39834.0,0.09926997]
[1645836694174,0.0463,39843.0,39838.0,0.00045958]
[1645836694370,0.0463,39843.0,39834.0,0.09802229]
[1645836694571,0.0463,39843.0,39834.0,0.00878232]
[1645836695071,0.0463,39843.0,39838.0,0.25]
[1645836695476,0.7658,39842.0,39838.0,0.25]
[1645836695673,0.828612,39840.0,39838.0,0.25]
[1645836695873,0.828612,39840.0,39819.0,1.2751]
[1645836695874,1.6621,39839.0,39819.0,1.2751]
[1645836696071,1.6621,39839.0,39819.0,0.59253997]
[1645836696072,0.3,39838.0,39819.0,0.59253997]
[1645836696271,0.0463,39837.0,39819.0,0.59253997]
[1645836696671,0.0463,39837.0,39827.0,0.00037351]
[1645836696874,0.18484201,39830.0,39827.0,0.00037351]
[1645836697510,0.18484201,39830.0,39819.0,0.5033]
[1645836697707,0.18484201,39830.0,39827.0,0.00045968]
[1645836697708,0.3463,39829.0,39827.0,0.00045968]
[1645836697910,0.0963,39829.0,39827.0,0.00045968]
[1645836698209,0.00565983,39828.0,39827.0,0.00045968]
[1645836698414,0.81775983,39828.0,39827.0,0.00045968]
[1645836698707,0.81775983,39828.0,39811.0,0.08923997]
[1645836698708,0.11478983,39828.0,39811.0,0.08923997]
[1645836699009,0.10913,39828.0,39826.0,0.00045969]
[1645836699207,0.18502215,39827.0,39826.0,0.00045969]
[1645836699410,0.23132215,39827.0,39826.0,0.00045969]
[1645836699607,0.28132215,39827.0,39826.0,0.00045969]
[1645836699906,0.28132215,39827.0,39813.0,0.24985657]
[1645836700107,0.28132215,39827.0,39825.0,0.0004597]
[1645836701157,0.28132215,39827.0,39814.0,0.08923997]
[1645836701366,0.22739295,39821.0,39814.0,0.08923997]
[1645836701762,0.22739295,39821.0,39809.0,0.5033]
[1645836701964,0.22739295,39821.0,39812.0,0.08923997]
[1645836702358,0.22739295,39821.0,39809.0,0.59253997]
[1645836702560,0.22722468,39821.0,39815.0,0.00045709]
[1645836703361,0.0463,39825.0,39815.0,0.00045709]
[1645836703560,0.0463,39825.0,39809.0,0.61804997]
[1645836703760,0.0463,39825.0,39816.0,0.00045708]
[1645836704762,0.0463,39825.0,39815.0,0.25]
[1645836705001,0.0463,39825.0,39819.0,0.00044446]
[1645836705202,0.1864757,39824.0,39819.0,0.00044446]
[1645836705405,0.3463,39823.0,39819.0,0.00044446]
[1645836705600,0.0463,39823.0,39819.0,0.00044446]
[1645836705801,0.0963,39823.0,39819.0,0.00044446]
[1645836706002,0.3963,39823.0,39803.0,0.2261]
[1645836706204,0.3963,39823.0,39819.0,0.00044716]
[1645836706504,0.0963,39823.0,39819.0,0.00044716]
[1645836706703,0.0463,39823.0,39819.0,0.00044716]
[1645836707108,0.062842,39822.0,39805.0,0.08923997]
[1645836707303,0.062842,39822.0,39803.0,0.2261]
[1645836707304,0.062844,39820.0,39803.0,0.2261]
[1645836707503,0.20111063,39819.0,39803.0,0.2261]
[1645836707703,0.20111063,39819.0,39798.0,0.15]
[1645836707704,1.01691063,39819.0,39798.0,0.15]
[1645836707903,0.3,39818.0,39799.0,0.08923997]
[1645836708103,0.1779245,39811.0,39799.0,0.08923997]
[1645836708302,0.0463,39811.0,39799.0,0.08923997]
[1645836708503,0.0463,39811.0,39807.0,0.00045957]
[1645836709356,0.24100324,39811.0,39807.0,0.00045957]
[1645836709555,0.24100324,39811.0,39799.0,0.08923997]
[1645836709760,0.24100324,39811.0,39807.0,0.00043145]
[1645836709957,0.7658,39810.0,39807.0,0.00043145]
[1645836710156,0.109162,39809.0,39807.0,0.00043145]
[1645836710556,0.159162,39809.0,39807.0,0.00043145]
[1645836710856,0.159162,39809.0,39787.0,0.8709]
[1645836711057,0.159162,39809.0,39806.0,0.00043146]
[1645836712057,0.159162,39809.0,39789.0,0.28875267]
[1645836712415,0.35,39808.0,39790.0,0.06139754]
[1645836712607,0.0463,39807.0,39790.0,0.06139754]
[1645836712807,0.062867,39805.0,39790.0,0.06139754]
[1645836713007,0.062867,39805.0,39794.0,0.06139754]
[1645836713008,0.0463,39804.0,39794.0,0.06139754]
[1645836713207,0.0463,39804.0,39786.0,0.02551]
[1645836713208,0.32948017,39803.0,39786.0,0.31452855]
[1645836713406,0.37578017,39803.0,39786.0,0.31467655]
[1645836713808,0.37578017,39803.0,39787.0,0.02551]
[1645836714007,2.661721,39796.0,39794.0,0.06139754]
[1645836714207,1.9533217,39796.0,39794.0,0.06139754]
[1645836714606,0.125733,39810.0,39806.0,0.12806349]
[1645836714807,0.0463,39809.0,39806.0,0.12806349]
[1645836715010,0.21958943,39808.0,39806.0,0.12806349]
[1645836715208,0.0413,39807.0,39806.0,0.12806349]
[1645836717658,0.8071,39807.0,39806.0,0.12806349]
[1645836719059,0.8061,39807.0,39806.0,0.12806349]
[1645836719915,0.81179625,39807.0,39806.0,0.12806349]
[1645836721019,1.11179625,39807.0,39806.0,0.12806349]
[1645836722019,0.81179625,39807.0,39806.0,0.12806349]
[1645836722820,1.11179625,39807.0,39806.0,0.12806349]
[1645836723657,0.81179625,39807.0,39806.0,0.12806349]
[1645836725761,0.04599625,39807.0,39806.0,0.12806349]
[1645836725961,0.04599625,39807.0,39806.0,0.14806349]
[1645836726562,0.41912404,39817.0,39806.0,0.14806349]
[1645836726563,0.062854,39814.0,39806.0,0.14806349]
[1645836726761,0.00029373,39808.0,39806.0,0.14806349]
[1645836726963,0.00029373,39808.0,39807.0,0.06139754]
[1645836727163,0.00029373,39808.0,39807.0,0.07143754]
[1645836727403,0.00029373,39808.0,39807.0,0.06139754]
[1645836727604,0.18964875,39819.0,39807.0,0.07143754]
[1645836727908,0.18964875,39819.0,39808.0,0.01004]
[1645836728107,0.00029373,39809.0,39808.0,0.01004]
[1645836728306,0.00029373,39809.0,39807.0,0.01004]
[1645836728804,1.50027679,39819.0,39807.0,0.01004]
[1645836729003,0.18966645,39811.0,39807.0,0.01004]
[1645836729204,0.18966645,39811.0,39806.0,0.14806349]
[1645836729205,0.00029373,39810.0,39806.0,0.14806349]
[1645836730006,0.18966645,39811.0,39806.0,0.14806349]
[1645836730405,0.00029373,39810.0,39806.0,0.14806349]
[1645836731357,0.062854,39813.0,39806.0,0.14806349]
[1645836731358,0.28350015,39813.0,39806.0,0.14806349]
[1645836731558,0.00029373,39810.0,39806.0,0.14806349]
[1645836732361,0.7658,39809.0,39806.0,0.14806349]
[1645836732560,0.7658,39807.0,39806.0,6.349e-05]
[1645836732763,0.8121,39807.0,39806.0,6.349e-05]
[1645836732962,0.0963,39807.0,39806.0,6.349e-05]
[1645836733164,0.72581611,39807.0,39806.0,6.349e-05]
[1645836733861,1.49161611,39807.0,39806.0,6.349e-05]
[1645836734260,1.30215553,39807.0,39806.0,3.49e-06]
[1645836734460,1.30215553,39807.0,39806.0,0.00138389]
[1645836735311,1.51287727,39807.0,39806.0,0.00138389]
[1645836735513,0.30702174,39807.0,39806.0,0.00138389]
[1645836736911,0.25702174,39807.0,39806.0,0.0013804]
[1645836740157,0.29563854,39807.0,39806.0,0.0013804]
[1645836742904,0.29563854,39807.0,39801.0,0.06139754]
[1645836743104,0.29563854,39807.0,39789.0,0.0056811]
[1645836743308,0.29563854,39807.0,39790.0,0.30131]
[1645836743608,0.29563854,39807.0,39798.0,0.06139754]
[1645836743806,2.08612138,39799.0,39798.0,0.06139754]
[1645836744408,0.24933854,39807.0,39798.0,0.06139754]
[1645836744609,0.24933854,39807.0,39792.0,0.15]
[1645836744808,0.24933854,39807.0,39791.0,0.2]
[1645836744809,0.24933854,39807.0,39796.0,0.00037124]
[1645836745009,0.24933854,39807.0,39797.0,0.06139754]
[1645836745409,1.01513854,39807.0,39797.0,0.06139754]
[1645836745608,0.24933854,39807.0,39797.0,0.06139754]
[1645836745808,0.05,39806.0,39797.0,0.06139754]
[1645836746008,0.29933854,39807.0,39806.0,0.08809626]
[1645836749358,1.06513854,39807.0,39806.0,0.08809626]
[1645836750605,1.11143854,39807.0,39806.0,0.08809626]
[1645836750805,1.11143854,39807.0,39791.0,0.3]
[1645836750806,0.7658,39805.0,39796.0,0.00044522]
[1645836751005,0.062872,39802.0,39796.0,0.00044522]
[1645836751208,0.32824911,39802.0,39796.0,0.00044522]
[1645836751409,0.18588221,39801.0,39796.0,0.00044522]
[1645836751805,0.23588221,39801.0,39796.0,0.00044521]
[1645836752009,0.23617708,39801.0,39796.0,0.00044521]
[1645836753006,0.23588221,39801.0,39796.0,0.00045937]
[1645836753207,0.23617708,39801.0,39796.0,0.00045937]
[1645836754061,0.23588221,39801.0,39792.0,0.06139754]
[1645836754257,0.23588221,39801.0,39796.0,0.00045937]
[1645836754458,0.23617708,39801.0,39796.0,0.00045937]
[1645836754859,1.00197708,39801.0,39796.0,0.00045937]
[1645836755062,0.23617708,39801.0,39796.0,0.00045937]
[1645836755261,0.23588221,39801.0,39792.0,0.06139754]
[1645836755459,0.23588221,39801.0,39796.0,0.00045937]
[1645836755460,0.23617708,39801.0,39796.0,0.00045937]
[1645836756665,0.19786342,39794.0,39792.0,0.06139754]
[1645836757264,0.19786342,39794.0,39789.0,0.0056811]
[1645836757265,0.0463,39793.0,39789.0,0.0056811]
[1645836757518,0.0413,39793.0,39789.0,0.0056811]
[1645836757918,0.00570179,39792.0,39789.0,0.0056811]
[1645836758118,0.0463,39791.0,39789.0,0.0056811]
[1645836758318,0.7658,39790.0,39789.0,0.00614053]
[1645836758538,0.8121,39790.0,39789.0,0.00614053]
[1645836758814,0.8121,39790.0,39789.0,0.0056811]
[1645836758815,0.8621,39790.0,39789.0,0.0056811]
[1645836759219,0.8621,39790.0,39789.0,8.11e-05]
[1645836759416,0.0963,39790.0,39789.0,8.11e-05]
[1645836759916,0.8621,39790.0,39789.0,8.11e-05]
[1645836760419,0.8571,39790.0,39789.0,8.11e-05]
[1645836762055,0.062883,39796.0,39789.0,0.1500811]
[1645836762255,0.55443689,39800.0,39790.0,0.3]
[1645836762256,0.32363689,39800.0,39790.0,0.3]
[1645836762459,8.837e-05,39801.0,39790.0,0.15]
[1645836762657,0.5465,39803.0,39791.0,0.3]
[1645836762955,0.20223767,39797.0,39791.0,0.3]
[1645836763956,0.20223767,39797.0,39792.0,0.00045902]
[1645836765008,0.20223767,39797.0,39785.0,0.15]
[1645836765208,0.20223767,39797.0,39793.0,0.00045908]
[1645836765808,0.42198783,39800.0,39793.0,0.00045908]
[1645836766011,0.18616,39799.0,39793.0,0.00045908]
[1645836766207,0.18616,39799.0,39790.0,0.15]
[1645836766409,0.08616,39799.0,39793.0,0.00045907]
[1645836767409,0.08616,39799.0,39788.0,0.2]
[1645836767610,0.08616,39799.0,39794.0,0.00045907]
[1645836768312,0.08616,39799.0,39795.0,0.35]
[1645836768762,0.08616,39799.0,39795.0,0.35045906]
[1645836769164,0.08616,39799.0,39795.0,0.00045906]
[1645836769763,0.08616,39799.0,39790.0,0.17551]
[1645836769963,0.08616,39799.0,39795.0,0.00045906]
[1645836770163,0.00029486,39801.0,39795.0,0.00045906]
[1645836770865,0.194872,39802.0,39794.0,0.35]
[1645836771064,0.189872,39802.0,39796.0,0.00045905]
[1645836771263,0.00029487,39801.0,39796.0,0.00045905]
[1645836771964,4.87e-06,39801.0,39796.0,0.00045905]
[1645836772171,0.43378229,39812.0,39791.0,0.27258341]
[1645836772172,0.42242122,39809.0,39807.0,0.2]
[1645836772434,0.20167048,39822.0,39808.0,0.700905]
[1645836772435,0.3179351,39819.0,39808.0,0.700905]
[1645836772634,0.8179351,39820.0,39813.0,0.35]
[1645836772829,0.3179351,39820.0,39814.0,0.3]
[1645836773031,0.3179351,39821.0,39809.0,0.2]
[1645836773229,0.3179351,39821.0,39810.0,0.3]
[1645836773430,0.3179351,39821.0,39811.0,0.15]
[1645836773629,0.3179351,39821.0,39812.0,0.3]
[1645836773828,0.21727709,39822.0,39811.0,0.15]
[1645836773829,0.53521219,39822.0,39811.0,0.15]
[1645836774331,0.3179351,39821.0,39811.0,0.15]
[1645836774528,0.53521219,39822.0,39810.0,0.35]
[1645836774733,0.3179351,39821.0,39810.0,0.35]
[1645836774929,0.22040066,39816.0,39810.0,0.35]
[1645836775231,0.22040066,39816.0,39807.0,0.15]
[1645836775629,0.22040066,39816.0,39802.0,0.02551]
[1645836775830,0.22040066,39816.0,39809.0,0.35]
[1645836776453,0.00029414,39813.0,39809.0,0.35]
[1645836776657,0.22040066,39816.0,39814.0,0.0003994]
[1645836777257,2.24220831,39817.0,39814.0,0.0003994]
[1645836778658,0.26521812,39822.0,39814.0,0.0003994]
[1645836778859,0.26521812,39823.0,39814.0,0.0003994]
[1645836779358,0.2976291,39824.0,39814.0,0.0003994]
[1645836779560,0.3476291,39824.0,39814.0,0.0003994]
[1645836780018,0.2976291,39824.0,39816.0,0.15]
[1645836780220,0.21521812,39828.0,39820.0,0.15]
[1645836780419,0.21207196,39828.0,39820.0,0.15]
[1645836780621,0.21207196,39827.0,39820.0,0.15]
[1645836781018,0.21207196,39828.0,39820.0,0.15]
[1645836781221,0.21207196,39827.0,39820.0,0.15]
[1645836781419,0.0002934,39826.0,39820.0,0.15]
[1645836781620,0.21236536,39826.0,39820.0,0.15]
[1645836781919,0.0002934,39826.0,39820.0,0.15]
[1645836782120,0.0002934,39826.0,39821.0,0.35]
[1645836782524,0.0002934,39825.0,39817.0,0.02512]
[1645836782720,0.0002934,39825.0,39823.0,0.35]
[1645836783221,0.0002934,39825.0,39821.0,0.35]
[1645836783530,0.0002934,39825.0,39816.0,0.15023136]
[1645836784178,0.2018317,39825.0,39816.0,0.15023136]
[1645836785377,8.803e-05,39822.0,39816.0,0.15023136]
[1645836786578,0.00027371,39821.0,39816.0,0.15023136]
[1645836787610,0.00027371,39820.0,39816.0,0.15023136]
[1645836788007,0.00027371,39820.0,39818.0,0.00023117]
[1645836788307,0.00027371,39820.0,39819.0,0.15]
[1645836789208,3.71e-06,39821.0,39819.0,0.6469915]
[1645836789411,3.71e-06,39821.0,39820.0,0.67898586]
[1645836790315,0.0021,39830.0,39820.0,0.67898586]
[1645836790511,0.0021,39830.0,39829.0,0.725395]
[1645836790910,0.0021,39830.0,39829.0,0.2]
[1645836791165,0.14419153,39828.0,39821.0,0.35]
[1645836791365,0.14419153,39828.0,39821.0,0.2]
[1645836791666,0.14419153,39828.0,39819.0,0.15]
[1645836791866,0.19254835,39825.0,39819.0,0.35]
[1645836792164,0.14419153,39828.0,39819.0,0.35]